[Event "Czech Open-E Teams 2022"]
[Site "Pardubice"]
[Date "2022.07.16"]
[Round "4.12"]
[White "Gnojek, Petr"]
[Black "Bures, Vit"]
[Result "1-0"]
[ECO "D44"]
[WhiteElo "2295"]
[BlackElo "2112"]
[Annotator "ChessBase"]
[PlyCount "67"]
[EventDate "2022.07.14"]
[EventType "team-tourn"]
[EventCountry "CZE"]
[SourceTitle "playchess.com"]
[Source "ChessBase"]
[SourceQuality "1"]
[TimeControl "5400+30"]

1. d4 {[%emt 0:00:04]} d5 {[%emt 0:00:03]} 2. c4 {[%emt 0:00:09]} c6 {[%emt 0:00:01]} 3. Nf3 {[%emt 0:00:10]} Nf6 {[%emt 0:00:02]} 4. Nc3 {[%emt 0:00:06]} e6 {[%emt 0:00:03]} 5. Bg5 {[%emt 0:00:21]} dxc4 {[%emt 0:00:08]} 6. e4 {[%emt 0:00:05]} b5 {[%emt 0:00:03]} 7. e5 {[%emt 0:00:04]} h6 {[%emt 0:00:04]} 8. Bh4 {[%emt 0:00:04]} g5 {[%emt 0:00:03]} 9. Nxg5 {[%emt 0:00:04]} hxg5 {[%emt 0:00:03]} 10. Bxg5 {[%emt 0:00:06]} Nbd7 {[%emt 0:00:02]} 11. exf6 {[%emt 0:00:10]} Bb7 {[%emt 0:00:04]} 12. g3 {[%emt 0:00:06]} Qb6 {[%emt 0:00:03]} 13. Bg2 {[%emt 0:00:05]} O-O-O {[%emt 0:00:00]} 14. O-O {[%emt 0:00:25]} c5 15. d5 {[%emt 0:05:30]} b4 {[%emt 0:00:17]} 16. Rb1 {[%emt 0:00:03]} Qa6 {[%emt 0:00:04]} 17. dxe6 {[%emt 0:01:50]} Bxg2 {[%emt 0:00:12]} 18. e7 {[%emt 0:00:13]} Bxf1 {[%emt 0:00:05]} 19. Kxf1 {[%emt 0:00:03]} Bxe7 {[%emt 0:01:54]} 20. fxe7 {[%emt 0:00:09]} Rdg8 {[%emt 0:00:03]} 21. Ne4 {[%emt 0:11:09]} Rxg5 {[%emt 0:02:11]} 22. Nxg5 {[%emt 0:00:05]} Re8 {[%emt 0:00:40]} 23. Qd5 {[%emt 0:09:24]} Rxe7 {[%emt 0:07:33]} 24. Kg1 {[%emt 0:00:07]} Qxa2 {[%emt 0:10:27]} 25. Qc6+ {[%emt 0:00:04]} Kd8 {[%emt 0:03:14]} 26. Rd1 {[%emt 0:00:06]} c3 {[%emt 0:03:41]} 27. Qb7 {[%emt 0:00:14]} Re1+ {[%emt 0:04:11]} 28. Rxe1 {[%emt 0:00:04]} cxb2 {[%emt 0:00:19]} 29. Rd1 {[%emt 0:02:28]} Qa4 {[%emt 0:00:20]} 30. Qb8+ {[%emt 0:00:04]} Ke7 {[%emt 0:00:14]} 31. Re1+ {[%emt 0:00:06]} Kf6 {[%emt 0:00:28]} 32. Qf4+ {[%emt 0:00:06]} Kg6 {[%emt 0:00:23]} 33. Qxf7+ {[%emt 0:00:09]} Kxg5 {[%emt 0:00:07]} 34. h4+ {[%emt 0:00:05]} 1-0

[Event "Czech Open-E Teams 2022"]
[Site "Pardubice"]
[Date "2022.07.16"]
[Round "4.13"]
[White "Cukrowski, Filip"]
[Black "Hrdina, Robin"]
[Result "1-0"]
[ECO "A05"]
[WhiteElo "2378"]
[BlackElo "2162"]
[Annotator "ChessBase"]
[PlyCount "65"]
[EventDate "2022.07.14"]
[EventType "team-tourn"]
[EventCountry "CZE"]
[SourceTitle "playchess.com"]
[Source "ChessBase"]
[SourceQuality "1"]
[TimeControl "5400+30"]

1. Nf3 {[%emt 0:11:18]} Nf6 {[%emt 0:00:07]} 2. d4 {[%emt 0:00:18]} e6 {[%emt 0:00:06]} 3. g3 {[%emt 0:00:53]} d5 {[%emt 0:00:07]} 4. Bg2 {[%emt 0:00:06]} b5 {[%emt 0:00:05]} 5. a4 {[%emt 0:02:32]} b4 {[%emt 0:00:06]} 6. c4 {[%emt 0:01:54]} bxc3 {[%emt 0:00:10]} 7. Nxc3 {[%emt 0:00:25]} Be7 {[%emt 0:00:23]} 8. Bf4 {[%emt 0:00:43]} c6 {[%emt 0:14:30]} 9. O-O {[%emt 0:00:47]} a5 {[%emt 0:01:08]} 10. e4 {[%emt 0:04:00]} O-O {[%emt 0:01:29]} 11. Qc2 {[%emt 0:03:11]} Na6 {[%emt 0:05:30]} 12. Ne5 {[%emt 0:07:03]} Nb4 {[%emt 0:00:42]} 13. Qd2 {[%emt 0:09:03]} Ba6 {[%emt 0:00:37]} 14. Rfc1 {[%emt 0:00:33]} Nd7 {[%emt 0:01:42]} 15. exd5 {[%emt 0:06:19]} cxd5 {[%emt 0:07:57]} 16. Nb5 {[%emt 0:06:15]} Rc8 {[%emt 0:02:19]} 17. Rxc8 {[%emt 0:05:40]} Bxc8 {[%emt 0:03:14]} 18. Rc1 {[%emt 0:03:02]} Nxe5 {[%emt 0:00:21]} 19. Bxe5 {[%emt 0:00:07]} Bd7 {[%emt 0:02:02]} 20. Bf1 {[%emt 0:02:43]} Bc6 {[%emt 0:21:03]} 21. b3 {[%emt 0:12:29]} Qa8 {[%emt 0:02:09]} 22. Bc7 {[%emt 0:04:44]} Rc8 {[%emt 0:03:37]} 23. Bb6 {[%emt 0:00:04]} h6 {[%emt 0:05:17]} 24. h4 {[%emt 0:07:14]} Bf8 {[%emt 0:03:56]} 25. Qf4 {[%emt 0:02:39]} Na2 {[%emt 0:10:44]} 26. Rc2 {[%emt 0:00:07]} Nb4 {[%emt 0:01:14]} 27. Rc3 {[%emt 0:00:05]} Bxb5 {[%emt 0:02:34]} 28. Rxc8 {[%emt 0:00:08]} Qxc8 {[%emt 0:00:05]} 29. axb5 {[%emt 0:00:11]} Qc3 {[%emt 0:02:52]} 30. Qb8 {[%emt 0:02:04]} Qe1 {[%emt 0:00:16]} 31. Bc5 {[%emt 0:00:50]} Nd3 {[%emt 0:00:29]} 32. Qxf8+ {[%emt 0:00:03]} Kh7 {[%emt 0:00:06]} 33. Qxf7 {[%emt 0:00:06]} 1-0

[Event "Czech Open-E Teams 2022"]
[Site "Pardubice"]
[Date "2022.07.16"]
[Round "4.14"]
[White "Zvolensky, David"]
[Black "Kulon, Klaudia"]
[Result "1-0"]
[ECO "D31"]
[WhiteElo "2196"]
[BlackElo "2286"]
[Annotator "ChessBase"]
[PlyCount "87"]
[EventDate "2022.07.14"]
[EventType "team-tourn"]
[EventCountry "CZE"]
[SourceTitle "playchess.com"]
[Source "ChessBase"]
[SourceQuality "1"]
[TimeControl "5400+30"]

1. d4 {[%emt 0:00:04]} d5 {[%emt 0:00:50]} 2. c4 {[%emt 0:00:04]} e6 {[%emt 0:00:02]} 3. Nc3 {[%emt 0:00:05]} c6 {[%emt 0:00:04]} 4. e4 {[%emt 0:00:03]} Bb4 {[%emt 0:01:50]} 5. e5 {[%emt 0:07:34]} dxc4 {[%emt 0:07:00]} 6. Bxc4 {[%emt 0:00:39]} c5 {[%emt 0:02:52]} 7. a3 {[%emt 0:08:38]} Ba5 {[%emt 0:01:46]} 8. dxc5 {[%emt 0:04:51]} Bxc3+ {[%emt 0:04:41]} 9. bxc3 {[%emt 0:00:12]} Qxd1+ {[%emt 0:00:51]} 10. Kxd1 {[%emt 0:00:05]} Nd7 {[%emt 0:00:05]} 11. Bb5 {[%emt 0:02:11]} Ne7 {[%emt 0:02:21]} 12. Nf3 {[%emt 0:01:59]} O-O {[%emt 0:00:42]} 13. Be3 {[%emt 0:00:27]} Nd5 {[%emt 0:07:22]} 14. Bd4 {[%emt 0:00:57]} Nc7 {[%emt 0:08:23]} 15. Bd3 {[%emt 0:03:41]} b6 {[%emt 0:05:32]} 16. cxb6 {[%emt 0:08:06]} axb6 {[%emt 0:04:38]} 17. Ng5 {[%emt 0:02:17]} h6 {[%emt 0:00:51]} 18. Ne4 {[%emt 0:00:09]} Ba6 {[%emt 0:02:39]} 19. c4 {[%emt 0:14:01]} Bb7 {[%emt 0:02:14]} 20. Ke2 {[%emt 0:07:08]} Ra5 {[%emt 0:09:15]} 21. Rhb1 {[%emt 0:06:12]} Na6 {[%emt 0:01:02]} 22. f4 {[%emt 0:04:23]} Bxe4 {[%emt 0:03:03]} 23. Bxe4 {[%emt 0:00:02]} Nac5 {[%emt 0:00:06]} 24. Bc6 {[%emt 0:03:11]} Rc8 {[%emt 0:00:05]} 25. Bb5 {[%emt 0:00:05]} Kf8 {[%emt 0:00:25]} 26. Bc3 {[%emt 0:01:24]} Ra7 {[%emt 0:00:08]} 27. Bb4 {[%emt 0:00:05]} Ke7 {[%emt 0:01:21]} 28. Rd1 {[%emt 0:01:08]} f6 {[%emt 0:01:40]} 29. Rd6 {[%emt 0:02:48]} fxe5 {[%emt 0:01:29]} 30. Rad1 {[%emt 0:00:11]} Nf6 {[%emt 0:02:23]} 31. Rxb6 {[%emt 0:01:55]} Kf7 {[%emt 0:01:39]} 32. fxe5 {[%emt 0:00:58]} Ng4 {[%emt 0:02:25]} 33. Rc6 {[%emt 0:00:33]} Rxc6 {[%emt 0:01:13]} 34. Bxc6 {[%emt 0:00:02]} Nb3 {[%emt 0:00:47]} 35. Rf1+ {[%emt 0:02:52]} Kg6 {[%emt 0:00:24]} 36. Be4+ {[%emt 0:01:38]} Kg5 {[%emt 0:00:11]} 37. Bd6 {[%emt 0:01:02]} Nxh2 {[%emt 0:01:29]} 38. Rb1 {[%emt 0:00:46]} Na5 {[%emt 0:00:08]} 39. Bc5 {[%emt 0:00:56]} Rf7 {[%emt 0:01:55]} 40. Be3+ {[%emt 0:01:20]} Kh4 {[%emt 0:00:28]} 41. Rb4 {[%emt 0:01:29]} Ng4 {[%emt 0:00:36]} 42. Bb6 {[%emt 0:02:02]} Rf4 {[%emt 0:00:34]} 43. c5 {[%emt 0:01:24]} Nb3 {[%emt 0:01:26]} 44. g3+ {[%emt 0:00:02]} 1-0

[Event "Czech Open-E Teams 2022"]
[Site "Pardubice"]
[Date "2022.07.16"]
[Round "4.15"]
[White "Mondrzycki, Bartlomiej"]
[Black "Pychova, Nela"]
[Result "1/2-1/2"]
[ECO "A46"]
[WhiteElo "2180"]
[BlackElo "2075"]
[Annotator "ChessBase"]
[PlyCount "49"]
[EventDate "2022.07.14"]
[EventType "team-tourn"]
[EventCountry "CZE"]
[SourceTitle "playchess.com"]
[Source "ChessBase"]
[SourceQuality "1"]
[TimeControl "5400+30"]

1. d4 {[%emt 0:00:14]} Nf6 {[%emt 0:06:28]} 2. Nf3 {[%emt 0:00:08]} e6 {[%emt 0:00:05]} 3. Bg5 {[%emt 0:02:06]} Be7 {[%emt 0:00:08]} 4. Nbd2 {[%emt 0:01:38]} d5 {[%emt 0:00:03]} 5. e3 {[%emt 0:04:32]} c5 {[%emt 0:00:03]} 6. c3 {[%emt 0:01:25]} O-O {[%emt 0:01:04]} 7. Bd3 Nc6 {[%emt 0:09:37]} 8. O-O {[%emt 0:00:13]} Qc7 {[%emt 0:06:24]} 9. Qc2 {[%emt 0:27:12]} h6 {[%emt 0:10:58]} 10. Bxf6 {[%emt 0:00:31]} Bxf6 {[%emt 0:04:33]} 11. dxc5 {[%emt 0:00:07]} a5 {[%emt 0:05:23]} 12. a4 {[%emt 0:05:41]} Ne5 {[%emt 0:08:26]} 13. Nxe5 {[%emt 0:18:52]} Bxe5 {[%emt 0:00:36]} 14. Nf3 {[%emt 0:00:02]} Bf6 {[%emt 0:00:26]} 15. e4 {[%emt 0:00:02]} dxe4 {[%emt 0:05:05]} 16. Bxe4 {[%emt 0:00:03]} Qxc5 {[%emt 0:00:39]} 17. Rad1 {[%emt 0:02:00]} Ra7 {[%emt 0:07:36]} 18. Nd4 {[%emt 0:08:28]} b6 {[%emt 0:03:02]} 19. Nb5 {[%emt 0:09:14]} Rd7 {[%emt 0:01:24]} 20. Qe2 {[%emt 0:00:23]} Rfd8 {[%emt 0:02:43]} 21. Rxd7 {[%emt 0:00:10]} Bxd7 {[%emt 0:06:23]} 22. Rd1 {[%emt 0:00:09]} Bxb5 {[%emt 0:01:38]} 23. Rxd8+ {[%emt 0:00:06]} Bxd8 {[%emt 0:00:08]} 24. Qxb5 {[%emt 0:00:12]} Qxb5 {[%emt 0:00:28]} 25. axb5 {[%emt 0:00:05]} 1/2-1/2

[Event "Czech Open-E Teams 2022"]
[Site "Pardubice"]
[Date "2022.07.16"]
[Round "4.16"]
[White "Dudek, Vojtech"]
[Black "Daniel, Damian"]
[Result "1-0"]
[ECO "B06"]
[WhiteElo "2006"]
[BlackElo "2172"]
[Annotator "ChessBase"]
[PlyCount "131"]
[EventDate "2022.07.14"]
[EventType "team-tourn"]
[EventCountry "CZE"]
[SourceTitle "playchess.com"]
[Source "ChessBase"]
[SourceQuality "1"]
[TimeControl "5400+30"]

1. d4 d6 2. e4 g6 3. Nc3 Bg7 4. Nf3 Nd7 5. Bc4 e6 6. Bg5 Ne7 7. Qd2 h6 8. Bf4 a6 9. a4 Nf6 10. O-O g5 11. Bg3 Nh5 12. Rad1 Ng6 13. Ne2 O-O 14. Ne1 Nxg3 15. Nxg3 Bd7 16. a5 Kh7 17. Nh5 Bh8 18. c3 f5 19. exf5 exf5 20. f4 g4 21. Nc2 Bb5 22. Qd3 Qd7 23. Ne3 Rae8 24. Bxb5 Qxb5 25. c4 Qd7 26. Ng3 Nh4 27. Nxg4 Qc6 28. Rd2 Rf7 29. Ne3 Ref8 30. Nd5 Qd7 31. Re2 c5 32. dxc5 dxc5 33. Rfe1 Bd4+ 34. Kh1 Ng6 35. b3 Qd8 36. Qf3 Qh4 37. Re6 Qg4 38. Qxg4 fxg4 39. Ne2 Nh4 40. Nxd4 cxd4 41. Rd1 Nf5 42. Kg1 Kg7 43. Kf2 Rc8 44. Ke2 Rc5 45. Ra1 Rc6 46. Rxc6 bxc6 47. Nb4 Rb7 48. Nxa6 Rxb3 49. Nc5 Re3+ 50. Kd2 Nd6 51. a6 Nxc4+ 52. Kd1 Nb6 53. a7 Na8 54. Ra6 Re7 55. Kd2 Rf7 56. Kd3 Rf6 57. g3 Rd6 58. Nb7 Re6 59. Nc5 Rd6 60. Nb3 Rd7 61. Rxc6 Rxa7 62. Nxd4 Rf7 63. Ke4 Rf6 64. Nf5+ Kg6 65. Rxf6+ Kxf6 66. Nxh6 1-0

[Event "Czech Open-E Teams 2022"]
[Site "Pardubice"]
[Date "2022.07.16"]
[Round "4.17"]
[White "Walek, Petr"]
[Black "Polak, Tomas"]
[Result "1/2-1/2"]
[ECO "B12"]
[WhiteElo "2237"]
[BlackElo "2512"]
[Annotator "ChessBase"]
[PlyCount "107"]
[EventDate "2022.07.14"]
[EventType "team-tourn"]
[EventCountry "CZE"]
[SourceTitle "playchess.com"]
[Source "ChessBase"]
[SourceQuality "1"]
[TimeControl "5400+30"]

1. e4 c6 2. d4 d5 3. e5 Bf5 4. Nd2 e6 5. Nb3 Nd7 6. Nf3 Bg6 7. Be2 Nh6 8. O-O Nf5 9. a4 h5 10. a5 a6 11. Bf4 Be7 12. Re1 Rc8 13. c4 dxc4 14. Bxc4 O-O 15. Nfd2 Bb4 16. Ra4 c5 17. dxc5 Bxc5 18. Ne4 b5 19. axb6 Nxb6 20. Qxd8 Rfxd8 21. Bxa6 Nxa4 22. Bxc8 Bxf2+ 23. Kxf2 Rxc8 24. Re2 Ne7 25. Bc1 Nd5 26. Nd6 Rb8 27. Na5 Nb4 28. Kg3 Nd3 29. Bg5 Naxb2 30. Nc6 Ra8 31. Re3 Nd1 32. Rf3 Ne1 33. Rb3 Ra2 34. Ne7+ Kh7 35. h3 Rxg2+ 36. Kh4 Rg1 37. Bd2 Bc2 38. Rg3 Bg6 39. Nxg6 fxg6 40. Rxg1 Nf3+ 41. Kg3 Nxg1 42. Nf7 Ne2+ 43. Kf3 Nd4+ 44. Ke4 Nf5 45. Kf3 Nb2 46. Ng5+ Kg8 47. Nxe6 Nc4 48. Bc3 Nb6 49. Nf4 Kf7 50. Ke4 Ng3+ 51. Kf3 g5 52. e6+ Ke8 53. Bxg7 gxf4 54. Kxf4 1/2-1/2

[Event "Czech Open-E Teams 2022"]
[Site "Pardubice"]
[Date "2022.07.16"]
[Round "4.18"]
[White "Nemec, Jachym"]
[Black "Kratochvil, Vit"]
[Result "1/2-1/2"]
[ECO "E71"]
[WhiteElo "2357"]
[BlackElo "2237"]
[Annotator "ChessBase"]
[PlyCount "62"]
[EventDate "2022.07.14"]
[EventType "team-tourn"]
[EventCountry "CZE"]
[SourceTitle "playchess.com"]
[Source "ChessBase"]
[SourceQuality "1"]
[TimeControl "5400+30"]

1. d4 {[%emt 0:00:02]} Nf6 {[%emt 0:03:35]} 2. c4 {[%emt 0:00:06]} g6 {[%emt 0:00:24]} 3. Nc3 {[%emt 0:00:05]} Bg7 {[%emt 0:00:25]} 4. e4 {[%emt 0:00:06]} d6 {[%emt 0:00:13]} 5. h3 {[%emt 0:00:04]} O-O {[%emt 0:05:28]} 6. Be3 {[%emt 0:00:04]} Na6 {[%emt 0:08:41]} 7. Nf3 {[%emt 0:06:27]} c5 {[%emt 0:02:12]} 8. d5 {[%emt 0:06:45]} e6 {[%emt 0:05:59]} 9. Bd3 {[%emt 0:12:58]} Re8 10. O-O {[%emt 0:01:07]} Nc7 {[%emt 0:11:51]} 11. Re1 {[%emt 0:09:49]} exd5 12. cxd5 {[%emt 0:10:56]} b5 {[%emt 0:31:54]} 13. e5 {[%emt 0:00:48]} dxe5 {[%emt 0:08:16]} 14. Bxc5 {[%emt 0:23:55]} b4 {[%emt 0:00:39]} 15. Bxb4 {[%emt 0:00:30]} Ncxd5 {[%emt 0:00:30]} 16. Nxd5 {[%emt 0:02:58]} Nxd5 17. Bc5 {[%emt 0:03:18]} Bb7 {[%emt 0:13:18]} 18. Qb3 Nf4 {[%emt 0:04:21]} 19. Bc4 {[%emt 0:08:35]} Bd5 {[%emt 0:01:15]} 20. Rad1 {[%emt 0:00:27]} Bxc4 {[%emt 0:00:41]} 21. Qxc4 {[%emt 0:00:26]} Qc7 {[%emt 0:00:41]} 22. Qb4 {[%emt 0:01:36]} Qc6 {[%emt 0:00:33]} 23. Qa3 {[%emt 0:01:17]} e4 {[%emt 0:00:28]} 24. Nd4 {[%emt 0:04:19]} Qb7 {[%emt 0:00:26]} 25. Qe3 {[%emt 0:03:27]} Nd5 {[%emt 0:00:34]} 26. Qb3 {[%emt 0:00:35]} Qxb3 {[%emt 0:00:27]} 27. Nxb3 {[%emt 0:00:05]} Nf4 {[%emt 0:00:28]} 28. Bd4 {[%emt 0:00:19]} Nd3 {[%emt 0:00:34]} 29. Re2 {[%emt 0:00:15]} a5 {[%emt 0:00:33]} 30. Bxg7 {[%emt 0:01:50]} Kxg7 {[%emt 0:00:01]} 31. Nd2 {[%emt 0:00:57]} f5 {[%emt 0:00:46]} 1/2-1/2

[Event "Czech Open-E Teams 2022"]
[Site "Pardubice"]
[Date "2022.07.16"]
[Round "4.19"]
[White "Ruzicka, Josef"]
[Black "Kusa, Jakub"]
[Result "0-1"]
[ECO "C27"]
[WhiteElo "2177"]
[BlackElo "2353"]
[Annotator "ChessBase"]
[PlyCount "118"]
[EventDate "2022.07.14"]
[EventType "team-tourn"]
[EventCountry "CZE"]
[SourceTitle "playchess.com"]
[Source "ChessBase"]
[SourceQuality "1"]
[TimeControl "5400+30"]

1. e4 {[%emt 0:00:03]} e5 {[%emt 0:00:15]} 2. Nc3 {[%emt 0:00:07]} Nf6 {[%emt 0:00:09]} 3. Bc4 {[%emt 0:00:08]} Nxe4 {[%emt 0:00:20]} 4. Qh5 {[%emt 0:00:29]} Nd6 {[%emt 0:00:08]} 5. Bb3 {[%emt 0:00:25]} Be7 {[%emt 0:01:15]} 6. Nf3 {[%emt 0:00:42]} Nc6 {[%emt 0:02:37]} 7. Nxe5 {[%emt 0:00:46]} g6 {[%emt 0:04:28]} 8. Nxc6 {[%emt 0:02:24]} dxc6 {[%emt 0:00:56]} 9. Qf3 {[%emt 0:02:35]} O-O {[%emt 0:02:46]} 10. d3 {[%emt 0:04:44]} Nf5 {[%emt 0:03:10]} 11. O-O {[%emt 0:00:12]} Nd4 {[%emt 0:01:44]} 12. Qd1 {[%emt 0:02:50]} a5 {[%emt 0:02:24]} 13. Be3 {[%emt 0:02:16]} Bf5 {[%emt 0:02:18]} 14. Re1 {[%emt 0:05:30]} Bb4 {[%emt 0:05:36]} 15. a3 {[%emt 0:07:30]} Nxb3 {[%emt 0:02:45]} 16. cxb3 {[%emt 0:00:04]} Be7 {[%emt 0:04:34]} 17. d4 {[%emt 0:02:24]} Qd7 {[%emt 0:03:05]} 18. d5 {[%emt 0:03:10]} c5 {[%emt 0:02:11]} 19. Qd2 {[%emt 0:00:50]} Rad8 {[%emt 0:03:28]} 20. Rad1 {[%emt 0:01:17]} Bd6 {[%emt 0:04:24]} 21. f3 {[%emt 0:04:50]} h5 {[%emt 0:01:58]} 22. Bg5 {[%emt 0:31:34]} Rde8 {[%emt 0:07:41]} 23. Bf6 {[%emt 0:00:53]} Bxh2+ {[%emt 0:07:29]} 24. Kxh2 {[%emt 0:00:53]} Qd6+ {[%emt 0:00:07]} 25. Kg1 {[%emt 0:00:31]} Qxf6 {[%emt 0:00:18]} 26. Ne4 {[%emt 0:02:32]} Bxe4 {[%emt 0:01:47]} 27. fxe4 {[%emt 0:00:07]} b6 {[%emt 0:01:28]} 28. b4 {[%emt 0:00:57]} axb4 {[%emt 0:05:57]} 29. axb4 {[%emt 0:00:07]} cxb4 {[%emt 0:00:40]} 30. Qxb4 {[%emt 0:00:16]} Re7 {[%emt 0:02:30]} 31. d6 {[%emt 0:02:15]} cxd6 {[%emt 0:00:16]} 32. Rxd6 {[%emt 0:00:23]} Re6 {[%emt 0:01:11]} 33. e5 {[%emt 0:01:17]} Qf5 {[%emt 0:01:14]} 34. Rxb6 {[%emt 0:04:34]} Rxe5 {[%emt 0:01:06]} 35. Rf1 {[%emt 0:00:52]} Qc2 {[%emt 0:01:12]} 36. Rbf6 {[%emt 0:04:40]} Re2 {[%emt 0:01:42]} 37. Qb7 {[%emt 0:01:45]} Qxb2 {[%emt 0:05:00]} 38. Qd5 {[%emt 0:01:30]} Qc2 {[%emt 0:02:11]} 39. Kh1 {[%emt 0:00:26]} Qe4 {[%emt 0:01:03]} 40. Qg5 {[%emt 0:00:45]} Re1 {[%emt 0:00:58]} 41. Rxe1 {[%emt 0:02:29]} Qxe1+ {[%emt 0:00:02]} 42. Kh2 {[%emt 0:00:09]} Kg7 {[%emt 0:00:35]} 43. Rf3 {[%emt 0:00:48]} Qe6 {[%emt 0:00:26]} 44. Qc5 {[%emt 0:00:41]} Re8 {[%emt 0:01:05]} 45. Qa7 {[%emt 0:02:16]} Qe5+ {[%emt 0:00:54]} 46. g3 {[%emt 0:00:14]} Re7 {[%emt 0:00:13]} 47. Qf2 {[%emt 0:00:20]} h4 {[%emt 0:00:41]} 48. Rf4 {[%emt 0:00:45]} hxg3+ {[%emt 0:00:36]} 49. Qxg3 {[%emt 0:00:11]} g5 {[%emt 0:01:16]} 50. Rf2 {[%emt 0:00:48]} Qxg3+ {[%emt 0:00:10]} 51. Kxg3 {[%emt 0:00:05]} Kg6 {[%emt 0:00:20]} 52. Ra2 {[%emt 0:00:10]} Re3+ {[%emt 0:00:13]} 53. Kf2 {[%emt 0:00:07]} Rb3 {[%emt 0:00:13]} 54. Kg2 {[%emt 0:00:12]} g4 {[%emt 0:01:17]} 55. Ra5 {[%emt 0:00:11]} f5 {[%emt 0:00:39]} 56. Rc5 {[%emt 0:00:11]} f4 {[%emt 0:01:47]} 57. Ra5 {[%emt 0:00:07]} Rb2+ {[%emt 0:00:12]} 58. Kg1 {[%emt 0:00:15]} g3 {[%emt 0:01:00]} 59. Kf1 {[%emt 0:00:07]} f3 {[%emt 0:00:51]} 0-1

[Event "Czech Open-E Teams 2022"]
[Site "Pardubice"]
[Date "2022.07.16"]
[Round "4.20"]
[White "Pisk, Petr"]
[Black "Kosut, Tomas"]
[Result "1/2-1/2"]
[ECO "A46"]
[WhiteElo "2329"]
[BlackElo "1820"]
[Annotator "ChessBase"]
[PlyCount "40"]
[EventDate "2022.07.14"]
[EventType "team-tourn"]
[EventCountry "CZE"]
[SourceTitle "playchess.com"]
[Source "ChessBase"]
[SourceQuality "1"]
[TimeControl "5400+30"]

1. d4 {[%emt 0:00:12]} Nf6 {[%emt 0:04:07]} 2. Nf3 {[%emt 0:00:33]} e6 {[%emt 0:01:59]} 3. Bg5 {[%emt 0:00:21]} Be7 {[%emt 0:02:18]} 4. Nbd2 {[%emt 0:00:21]} O-O {[%emt 0:06:06]} 5. e3 {[%emt 0:02:14]} b6 {[%emt 0:03:08]} 6. Bd3 {[%emt 0:01:03]} Bb7 {[%emt 0:01:01]} 7. O-O {[%emt 0:01:07]} d6 {[%emt 0:03:03]} 8. a4 {[%emt 0:04:59]} a5 {[%emt 0:07:08]} 9. Bxf6 {[%emt 0:03:55]} Bxf6 {[%emt 0:00:24]} 10. c3 {[%emt 0:00:05]} Nd7 {[%emt 0:18:16]} 11. Qc2 {[%emt 0:12:38]} g6 {[%emt 0:05:54]} 12. e4 {[%emt 0:02:05]} c5 {[%emt 0:04:29]} 13. Bb5 {[%emt 0:01:28]} cxd4 {[%emt 0:02:30]} 14. cxd4 {[%emt 0:01:39]} Rc8 {[%emt 0:10:15]} 15. Qd3 {[%emt 0:15:24]} Bg7 {[%emt 0:03:44]} 16. Rac1 {[%emt 0:17:38]} Nf6 {[%emt 0:05:02]} 17. Ba6 {[%emt 0:10:42]} Qd7 {[%emt 0:04:19]} 18. Bxb7 {[%emt 0:10:48]} Qxb7 {[%emt 0:00:37]} 19. g3 {[%emt 0:00:04]} Bh6 {[%emt 0:01:59]} 20. Rc3 {[%emt 0:08:02]} Rxc3 {[%emt 0:00:46]} 1/2-1/2

[Event "Czech Open-E Teams 2022"]
[Site "Pardubice"]
[Date "2022.07.16"]
[Round "4.21"]
[White "Svoboda, Vaclav"]
[Black "Stinka, Jakub"]
[Result "1/2-1/2"]
[ECO "C77"]
[WhiteElo "2397"]
[BlackElo "2335"]
[Annotator "ChessBase"]
[PlyCount "97"]
[EventDate "2022.07.14"]
[EventType "team-tourn"]
[EventCountry "CZE"]
[SourceTitle "playchess.com"]
[Source "ChessBase"]
[SourceQuality "1"]
[TimeControl "5400+30"]

1. e4 {[%emt 0:00:06]} e5 {[%emt 0:01:15]} 2. Nf3 {[%emt 0:00:12]} Nc6 {[%emt 0:00:13]} 3. Bb5 {[%emt 0:00:08]} a6 {[%emt 0:00:02]} 4. Ba4 {[%emt 0:00:09]} Nf6 {[%emt 0:00:28]} 5. Qe2 {[%emt 0:00:11]} b5 {[%emt 0:00:03]} 6. Bb3 {[%emt 0:00:09]} Bc5 {[%emt 0:00:14]} 7. c3 {[%emt 0:00:38]} d6 {[%emt 0:00:20]} 8. O-O {[%emt 0:00:39]} O-O {[%emt 0:03:13]} 9. Rd1 {[%emt 0:04:27]} Bb6 {[%emt 0:02:00]} 10. h3 Na5 {[%emt 0:14:43]} 11. Bc2 {[%emt 0:01:58]} c5 {[%emt 0:00:06]} 12. d4 {[%emt 0:05:10]} cxd4 {[%emt 0:08:40]} 13. cxd4 {[%emt 0:00:01]} exd4 {[%emt 0:00:58]} 14. Nxd4 {[%emt 0:02:18]} h6 {[%emt 0:02:27]} 15. Bf4 {[%emt 0:03:58]} Qe7 {[%emt 0:04:21]} 16. Nf3 {[%emt 0:07:15]} Nc4 {[%emt 0:03:55]} 17. a4 {[%emt 0:09:29]} Bd7 {[%emt 0:02:29]} 18. Nc3 {[%emt 0:09:58]} Bc5 {[%emt 0:05:48]} 19. Rab1 {[%emt 0:22:54]} Rac8 {[%emt 0:04:21]} 20. Bd3 {[%emt 0:02:10]} Rfe8 {[%emt 0:03:42]} 21. axb5 {[%emt 0:04:00]} axb5 {[%emt 0:00:08]} 22. Rbc1 {[%emt 0:05:03]} b4 {[%emt 0:10:09]} 23. Nb1 {[%emt 0:01:01]} Ne5 {[%emt 0:00:34]} 24. Nxe5 {[%emt 0:00:55]} dxe5 {[%emt 0:00:07]} 25. Be3 {[%emt 0:00:02]} Ba4 {[%emt 0:01:00]} 26. Re1 {[%emt 0:00:33]} Red8 {[%emt 0:01:43]} 27. Ba6 {[%emt 0:02:49]} Rc7 {[%emt 0:01:54]} 28. Bxc5 {[%emt 0:02:19]} Rxc5 {[%emt 0:00:08]} 29. Nd2 {[%emt 0:00:12]} Rxc1 {[%emt 0:02:31]} 30. Rxc1 {[%emt 0:00:01]} Qd6 {[%emt 0:00:38]} 31. Nf3 {[%emt 0:01:41]} Bd1 {[%emt 0:00:51]} 32. Qc4 {[%emt 0:02:28]} Bxf3 {[%emt 0:01:15]} 33. gxf3 {[%emt 0:00:03]} Nh5 34. Qc7 {[%emt 0:02:08]} Nf4 {[%emt 0:06:53]} 35. Qxd6 {[%emt 0:03:47]} Rxd6 {[%emt 0:00:04]} 36. Rc8+ {[%emt 0:00:34]} Kh7 {[%emt 0:00:02]} 37. Bc4 {[%emt 0:01:05]} Rd1+ {[%emt 0:03:19]} 38. Kh2 {[%emt 0:00:20]} Rd2 {[%emt 0:08:30]} 39. Kg3 {[%emt 0:00:14]} Rxb2 {[%emt 0:01:59]} 40. Bxf7 {[%emt 0:00:11]} g5 {[%emt 0:00:05]} 41. Rb8 {[%emt 0:02:44]} Ne2+ {[%emt 0:02:34]} 42. Kg4 {[%emt 0:01:40]} Nd4 {[%emt 0:00:24]} 43. Kh5 {[%emt 0:02:28]} Kg7 {[%emt 0:00:19]} 44. Bd5 {[%emt 0:00:16]} Rxf2 {[%emt 0:01:42]} 45. Rxb4 {[%emt 0:00:39]} Rxf3 {[%emt 0:01:05]} 46. Rb7+ {[%emt 0:00:37]} Kf8 {[%emt 0:00:05]} 47. Kxh6 {[%emt 0:00:05]} Rxh3+ {[%emt 0:00:32]} 48. Kxg5 {[%emt 0:00:03]} Rf3 {[%emt 0:00:04]} 49. Kg6 {[%emt 0:01:13]} 1/2-1/2